Cogmind - Beta 15 @@@ ROGUE MODE // 2025.06.17 @ 18:11:02 Player: Oldman Pu Result: Destroyed by G-47 Trooper with Particle Gun Performance ------------- Evolutions (0) 0 Regions Visited (2) 400 Robots Destroyed (24) 120 Value Destroyed (553) 553 Prototype IDs (1) 20 Alien Tech Used (0) 0 Bonus (0) 0 TOTAL SCORE: 1093 Bonus ------- None Cogmind --------- Core Integrity 0/250 Matter 280/300 Energy 265/265 System Corruption 1% Temperature Hot (276) Movement Rolling (95) Ox1 Location -10/Subcaves Parts ------- > --- POWER (1) -------- Improved Ion Engine > --- PROPULSION (2) --- Wheel Wheel > --- UTILITY (2) ------ Large Storage Unit Light Armor Plating > --- WEAPON (2) ------- Heavy Battle Rifle > --- INVENTORY (15) --- Improved Ion Engine Improved Ion Engine Wheel Wheel Wheel Heat Sink Large Battery (200) Light Armor Plating Riot Gun Beam Rifle Beam Rifle Subdweller Machine Gun Improved Assault Rifle Slug Cannon Peak State ------------ > --- POWER ------------ Light Nuclear Core > --- PROPULSION ------- Wheel Compact Wheel > --- UTILITY ---------- Heat Sink Large Storage Unit > --- WEAPON ----------- Beam Rifle Improved Assault Rifle > --- INVENTORY -------- Improved Ion Engine Improved Ion Engine Improved Ion Engine Wheel Wheel Wheel Wheel Wheel Beam Rifle Beam Rifle Beam Rifle Light Assault Rifle Improved Assault Rifle Improved Assault Rifle Improved Assault Rifle [Rating: 14] Favorites ----------- Power Improved Ion Engine Engine Improved Ion Engine Power Core Light Nuclear Core Propulsion Wheel Wheel Wheel Utility Large Storage Unit Device Heat Sink Storage Large Storage Unit Protection Light Armor Plating Weapon Beam Rifle Energy Gun Beam Rifle Ballistic Gun Improved Assault Rifle Ballistic Cannon Slug Cannon Build | -11 -10 -10 ------- Run | Yrd Mat Sub Slots Evolved . | . . . Power . | . . . Propulsion . | . . . Utility . | . . . Weapon . | . . . Parts Attached 28 | 6 15 7 Power 5 | 1 4 . Engine 4 | 1 3 . Core 1 | . 1 . Reactor . | . . . Propulsion 6 | 2 3 1 Treads . | . . . Leg . | . . . Wheel 6 | 2 3 1 Hover . | . . . Flight . | . . . Utility 8 | 1 5 2 Device 2 | . 2 . Storage 3 | 1 2 . Processor . | . . . Hackware . | . . . Protection 3 | . 1 2 Artifact . | . . . Weapon 9 | 2 3 4 Energy Gun 3 | 1 1 1 Energy Cannon . | . . . Ballistic Gun 4 | 1 2 1 Ballistic Cannon 2 | . . 2 Launcher . | . . . Special Weapon . | . . . Impact Weapon . | . . . Slashing Weapon . | . . . Piercing Weapon . | . . . Special Melee Weapon . | . . . Unidentified Prototypes 1 | . 1 . Parts Lost 10 | . 5 5 Power 1 | . 1 . Propulsion 3 | . 2 1 Utility 3 | . 1 2 Weapon 3 | . 1 2 Highest Loss Streak 3 | . 3 2 To Critical Strikes 1 | . 1 . Average Backups 12 | . 11 13 Power 2 | . 2 2 Propulsion 3 | . 4 3 Utility 2 | . . 4 Weapon 4 | . 4 4 Tool/Special . | . . . Unused Backups 15 | . 3 12 Power 2 | . . 2 Propulsion 4 | . 1 3 Utility 1 | . . 1 Weapon 8 | . 2 6 Tool/Special . | . . . Average Slot Usage (%) 96 | . 94 99 Engine 10 | . 8 14 Core 3 | . 5 . Wheel 26 | . 25 27 Device 5 | . 8 . Storage 15 | . 16 14 Protection 6 | . . 14 Energy Gun 13 | . 14 13 Ballistic Gun 13 | . 14 13 Peak Build Rating 14 | 6 14 14 Average Rating 12 | 4 11 12 On Entrance 6 | . 6 13 Naked Turns . | . . . Heaviest Build 40 | 10 36 40 Greatest Support 26 | 26 26 20 Greatest Overweight (x) 3 | 1 1 3 Average Overweight (x) . | . . 1 Largest Inventory Capacity 15 | 8 15 15 Average Capacity 14 | 6 14 15 Most Carried 15 | . 15 15 Average Carried 12 | . 11 13 Final Capacity 15 | 8 15 15 Final Carried 15 | . 15 14 Class Distribution -------------------- 100% | Mutant Dominant Class ---------------- Mutant | -10/Materials Mutant | -10/Subcaves Resources | -11 -10 -10 ----------- Run | Yrd Mat Sub Matter Collected 662 | 228 291 143 Remotely . | . . . Salvage Created 794 | . 577 217 Parts 45 | . 34 11 Haulers Intercepted 2 | . 2 . Recyclers Shooed 1 | . 1 . Parts Field Recycled . | . . . Retrieved Matter . | . . . Parts Self-Destructed . | . . . Prevented . | . . . Kills | -11 -10 -10 ------- Run | Yrd Mat Sub Combat Hostiles Destroyed 16 | . 11 5 Guns 16 | . 11 5 Classes Destroyed 8 | . 7 1 Builder 1 | . 1 . Hauler 2 | . 2 . Recycler 1 | . 1 . Operator 1 | . 1 . Watcher 3 | . 3 . Swarmer 5 | . 5 . Grunt 7 | . 6 1 Subdweller 4 | . . 4 Best Kill Streak 5 | . 5 1 Combat Bots Only 5 | . 5 1 Max Kills in Single Turn 2 | . 2 1 Gunslinging . | . . . Exploded . | . . . Melee . | . . . Uniques/NPCs Destroyed . | . . . Combat | -11 -10 -10 -------- Run | Yrd Mat Sub Hostile Shots Fired 120 | . 81 39 Missed 32 | . 24 8 Hits 88 | . 57 31 Projectile 88 | . 57 31 Critical Strikes 3 | . 2 1 Damage Taken 1310 | . 656 654 Core 257 | . 144 113 Absorbed by Shields . | . . . Core Remaining (%) 100 | 100 . . Volleys Fired 88 | . 55 33 Largest 2 | . 2 2 Hottest 96 | . 79 96 Shots Fired 171 | . 109 62 Gun 168 | . 109 59 Cannon 3 | . . 3 Launcher . | . . . Special . | . . . Kinetic 87 | . 54 33 Thermal 84 | . 55 29 Explosive . | . . . Electromagnetic . | . . . Robot Hit Streak 18 | . 18 8 Robot Miss Streak 3 | . 3 2 Penetration Max . | . . . Secondary Targets 3 | . 2 1 Max Gunslinging Chain 1 | . 1 1 Shots Hit Robots 110 | . 76 34 Core Hits 41 | . 30 11 Critical Kills . | . . . Critical Parts Destroyed . | . . . Critical Strikes 8 | . 5 3 Burn 7 | . 5 2 Destroy 1 | . . 1 Melee Attacks . | . . . Impact . | . . . Slashing . | . . . Piercing . | . . . Sneak Attacks . | . . . Combat Hostiles . | . . . Follow-up Attacks . | . . . Damage Inflicted 1633 | . 1109 524 Guns 1616 | . 1092 524 Cannons . | . . . Explosions . | . . . Melee . | . . . Ramming 17 | . 17 . Kinetic 838 | . 575 263 Thermal 778 | . 517 261 Explosive . | . . . Electromagnetic . | . . . Impact . | . . . Slashing . | . . . Piercing . | . . . Highest Corruption 1 | . 1 1 Average Corruption 1 | . 1 1 Corruption Purged . | . . . Corruption Blocked . | . . . Effects 4 | . . 4 Message Errors 1 | . . 1 Heat Flow Errors 2 | . . 2 Energy Discharges 1 | . . 1 Overload Shots . | . . . Overflow Damage . | . . . Projectiles . | . . . Explosions . | . . . Melee . | . . . Knockbacks . | . . . Impact . | . . . Kinetic . | . . . Secondary . | . . . Self-Inflicted Damage 8 | . 8 . Shots . | . . . Rammed 4 | . 4 . Targets Rammed 4 | . 4 . Kicked . | . . . Crushed . | . . . Highest Temperature 222 | . 222 204 Average Temperature 58 | . 57 61 Received Heat Transfer 351 | . 186 165 Siege Activations . | . . . Martial Activations . | . . . Shielding Activations . | . . . Robots Disrupted . | . . . Combat Hostiles . | . . . Robots Corrupted . | . . . Combat Hostiles . | . . . Parts Fried . | . . . Impact Corruptions . | . . . Robots Melted . | . . . Combat Hostiles . | . . . Parts Melted 4 | . 3 1 Heat Transferred 2493 | . 1679 814 Parts Sabotaged . | . . . Parts Stolen . | . . . Parts Stripped . | . . . Power Chain Reactions . | . . . Alert | -11 -10 -10 ------- Run | Yrd Mat Sub Maximum Alert Level . | . . . Low Security (%) 100 | 100 100 . Level 1 . | . . . Level 2 . | . . . Level 3 . | . . . Level 4 . | . . . Level 5 . | . . . High Security . | . . . Max Security . | . . . Peak Influence 125 | . 125 . Initial . | . . . Average 29 | . 30 . Influence Increases 375 | . 355 20 Destroy 0b10 Robot/C 240 | . 220 20 Destroy 0b10 Robot/NC 40 | . 40 . Destroy Leader 70 | . 70 . Successful Hack 8 | . 8 . Destroy Structure 2 | . 2 . Lose Combat Pursuer 15 | . 15 . Influence Decreases 373 | . 321 52 Entered New Map 17 | . . 17 Time Decay 316 | . 301 15 Lost Part 40 | . 20 20 Squads Dispatched 2 | . 2 . Investigation 1 | . 1 . Extermination . | . . . Reinforcement 1 | . 1 . Assault . | . . . Garrison . | . . . Intercept . | . . . Searches Triggered . | . . . Construction Impeded . | . . . Haulers Reinforced . | . . . Active Scanning Responses . | . . . Cargo Convoy Interrupts . | . . . Stealth | -11 -10 -10 --------- Run | Yrd Mat Sub Distress Signals 2 | . 2 . Communications Jammed . | . . . Distress Signals . | . . . Times Spotted 26 | . 19 7 Peak Tracking Total 5 | . 5 2 Tactical Retreats 2 | . 1 1 Traps | -11 -10 -10 ------- Run | Yrd Mat Sub Traps Triggered 4 | . 2 2 Indirectly . | . . . Trap Hack Attempts . | . . . Triggered . | . . . Disarmed . | . . . Reprogrammed . | . . . Reused . | . . . Traps Extracted . | . . . Installed . | . . . Triggered . | . . . Machines | -11 -10 -10 ---------- Run | Yrd Mat Sub Machines Disabled . | . . . Max in Single Turn . | . . . Machines Repaired . | . . . Machines Dismantled . | . . . Machines Sabotaged . | . . . Overloaded Fab Kills . | . . . Hacking | -11 -10 -10 --------- Run | Yrd Mat Sub Machines Accessed 4 | . 4 . Terminals 3 | . 3 . Fabricators . | . . . Repair Stations 1 | . 1 . Recycling Units . | . . . Scanalyzers . | . . . Garrison Access . | . . . Total Hacks 12 | . 12 . Successful 4 | . 4 . Failed 8 | . 8 . Catastrophic . | . . . Database Lockouts . | . . . Manual . | . . . Terminals 9 | . 9 . Fabricators . | . . . Repair Stations 3 | . 3 . Recycling Units . | . . . Scanalyzers . | . . . Garrison Access . | . . . Terminal Hacks 3 | . 3 . Emergency Access Points 1 | . 1 . Terminal Index 1 | . 1 . Locate Traps 1 | . 1 . Fabricator Hacks . | . . . Repair Station Hacks 1 | . 1 . Scan Component 1 | . 1 . Recycling Unit Hacks . | . . . Scanalyzer . | . . . Garrison Access Hacks . | . . . Unauthorized Hacks . | . . . Terminals . | . . . Fabricators . | . . . Repair Stations . | . . . Recycling Units . | . . . Scanalyzers . | . . . Garrison Access . | . . . Data Cores Recovered 1 | . 1 . Used . | . . . Hacking Detections 4 | . 4 . Full Trace Events 2 | . 2 . Feedback Events . | . . . Feedback Blocked . | . . . Robot Schematics Acquired . | . . . Robots Built . | . . . Authchips . | . . . Time . | . . . Total Robot Build Rating . | . . . Part Schematics Acquired . | . . . Parts Built . | . . . Authchips . | . . . Time . | . . . Total Part Build Rating . | . . . Parts Repaired . | . . . Time . | . . . Parts Recycled . | . . . Recycled Matter . | . . . Retrieved Matter . | . . . Retrieved Components . | . . . Parts Scanalyzed . | . . . Part Schematics Acquired . | . . . Parts Damaged . | . . . Bothacking | -11 -10 -10 ------------ Run | Yrd Mat Sub Used RIF Installer . | . . . Robots Hacked . | . . . Non-combat . | . . . Combat . | . . . Robot Hacks Applied . | . . . Relay Couplers Released . | . . . Fabnet Peak Effective % . | . . . Robots Rewired . | . . . Allies Hacked . | . . . Hacks Repelled . | . . . Allies | -11 -10 -10 -------- Run | Yrd Mat Sub Total Allies . | . . . Largest Group . | . . . Highest-Rated Group . | . . . Highest-Rated Ally . | . . . Total Orders . | . . . Ally Attacks . | . . . Total Damage . | . . . Kills . | . . . Allies Corrupted . | . . . Allies Melted . | . . . Intel | -11 -10 -10 ------- Run | Yrd Mat Sub Active Infowar (turns) . | . . . Robot Analysis Total . | . . . Derelict Logs Recovered . | . . . Drone Launches . | . . . Drone Recoveries . | . . . Exploration | -11 -10 -10 ------------- Run | Yrd Mat Sub Turns Passed 1842 | 38 1083 721 Spaces Moved 1423 | 37 805 581 Core 12 | 12 . . Treads . | . . . Legs . | . . . Wheels 1411 | 25 805 581 Hover . | . . . Flight . | . . . Fastest Speed 50 | 50 90 95 Average Speed 97 | 78 100 95 Slowest Speed 125 | 100 115 125 Overloaded Moves . | . . . Propulsion Burnouts . | . . . Robots Hopped . | . . . Potential Cave-ins . | . . . Cave-ins Triggered . | . . . Exploration Rate (%) 43 | 3 98 30 Regions Visited 2 Branch Regions 1 Pre-discovered Areas . | . . . Known Exits Taken . | . . . Unknown Exits Taken 2 | 1 1 . Scrap Searched 4 | . . 4 Spaces Dug . | . . . Terrain Destroyed 2 | . . 2 Melee . | . . . Projectile 2 | . . 2 AOE . | . . . Terrain Rammed . | . . . Walls Destroyed . | . . . Machines Disabled . | . . . Actions | -11 -10 -10 --------- Run | Yrd Mat Sub Total 1706 | 42 977 687 Wait 122 | . 64 58 Move 1421 | 36 804 581 Hop . | . . . Pick Up 28 | . 23 5 Fast Attach 10 | 6 4 . Attach 8 | . 4 4 Detach 1 | . 1 . Swap 10 | . 7 3 Drop 14 | . 11 3 Fire 88 | . 55 33 Melee . | . . . Ram 4 | . 4 . Kick . | . . . Crush . | . . . Escape Stasis . | . . . Rewire . | . . . Trap . | . . . Miscellaneous . | . . . Route ------- -11/Scrapyard -10/Materials (discovered 6 exits: [*Mat x3] / [*Min x2] / [*Sub]) -10/Subcaves History --------- Turn | Location | Event 2 | -11/Scrapyard | Met Revision 17 9 | -11/Scrapyard | Discovered new exit (range 15) 39 | -11/Scrapyard | Entered Materials 180 | -10/Materials | Discovered new exit (range 7) 198 | -10/Materials | Discovered new exit (range 16) 322 | -10/Materials | Build established: Mutant 476 | -10/Materials | Discovered new exit (range 16) 621 | -10/Materials | Discovered new exit (range 10) 783 | -10/Materials | Discovered new exit (range 8) 857 | -10/Materials | Lost 3 parts (1p1n1u) 862 | -10/Materials | Core integrity fell below 50% 1116 | -10/Materials | Discovered new exit (range 7) 1122 | -10/Materials | Entered Subcaves 1123 | -10/Subcaves | Approached by a straggling Scientist 1293 | -10/Subcaves | Shifting Twisted Machinery released Sub. Power Source 1428 | -10/Subcaves | Shifting Twisted Machinery released Mak. Hammer 1580 | -10/Subcaves | Core integrity fell below 20% 1668 | -10/Subcaves | Disturbed a concealed Subdweller 1843 | -10/Subcaves | Destroyed by G-47 Trooper with Particle Gun Last Messages --------------- 01648_ Dropped Imp. Assault Rifle. 01649_ Acquired 10 matter. 01651_ Acquired Hvy. Battle Rifle. 01655_ Searching scrap... 01655_ Found Scrap Shield. 01655_ Found Slug Cannon. 01655_ Found 44 Matter. 01657_ Dropped Battle Cannon. 01659_ Acquired 10 matter. 01668_ E3-3TR(R) angrily emerges from the Twisted Machinery. 01689_ E3-3TR(R) suffers critical hit (Destroy). 01695_ E3-3TR(R) suffers critical hit (Burn). 01698_ E3-3TR(R) destroyed. 01704_ Acquired 40 matter. 01821_ Lgt. Armor Plating destroyed. 01835_ Critical hit (Burn: +37). 01836_ G-34 Mercenary destroyed. 01836_ Switching to secondary target: G-47 Trooper. 01841_ Beam Rifle destroyed. 01843_ System corrupted: Heat flow error (+267). Map ----- +----------------------------------------------------+ | ?????????????????????????????????????????????????? | | ?????????????????????????????????????????????????? | | ?????????????????????????????????????????????????? | | ?????????????????????????????????????????????????? | | ?????????????????????????????????????????????????? | | ?????????????????????????????????????????????????? | | ?????????????????????????????????????????????????? | | ?????????????????????????????????????????????????? | | ???????????????????????#?????????????????????????? | | ??????????????????????? ##???????????????????????? | | ??????????????????????? ##?????????????????????? | | ??????????????????????? ##????????????????????? | | ????????????? ??????? ##???????????????????? | | ????????????? ?????? #???????????????????? | | ??????????????# #?????# #???????????????????? | | ???????????????# #????# #???????????????????? | | ????????????????# #??## ????????????????????? | | ??????????????### #?# #??#? #??????????????? | | ??????????????# ## ## # ???????????????? | | ??????????????# ?????????????????? | | ??????????????# ???????????????????? | | ??????????????# ?????????????????????? | | ???????????????# #??????????????????????? | | ????????????????# ##??????????????????????? | | ????????????????## ### g%######??????????????????? | | ???????????????????### @ ##?????????????????? | | ??????????????????## #?????????????????? | | ??????????????????# ## #????????????????? | | ??????????????????# #?? ??????????????? | | ??????????????????# ##??? ???????????? | | ?????????????????## ##???# ###??????????? | | ?????????????????# #?????##????????????? | | ?????????????????#### ###?????????????????? | | ????????????????????# ##????????????????? | | ????????????????????## #????????????????? | | ?????????????????????# ##????????????????? | | ?????????????????????## "##????????????????? | | ??????????????????????####### " #????????????????? | | ???????????????????????????# "##????????????????? | | ????????????????###????????## " #????????????????? | | ????????????????# ????????## " ##???????????????? | | ????????????????" ??##### "" #???????????????? | | ???????????????"" ?##""" " #???????????????? | | ???????????????? """""""" ###???????????????? | | ????????????????# """"""" # ##????????????????? | | ????????????????#" """"""" "####?????????????? | | ????????????????#"""""""""" / ##????????????? | | ?????????????????#"""""""""# " #??????????### | | ?????????????????#" #?# "## #" #####??????# | | ?????????????????# #?## #?##### ### ##?????# | +----------------------------------------------------+ Best States ------------- Heat Dissipation 35 Energy Generation 14 Energy Capacity 465 Matter Stores 300 Matter Capacity 300 Sight Range 16 Terrain Scan Density 10 Armor Coverage 150 Evasion (%) 50 Item Schematics ----------------- None Robot Schematics ------------------ None Fabricated ------------ Nothing Repaired ---------- Nothing Alien Tech Used ----------------- None Achievements -------------- None Challenges ------------ None Game ------ Seed IonicDecoyKit Manual? 0 Play Time 00:22:47 Cumulative 303.2 hours Start 2025.06.17 @ 17:53:30 End 2025.06.17 @ 18:11:02 Sessions 1 Manual Loads 0 Difficulty Rogue Special Mode None Game No. 258 Rogue 246 Adventurer 12 Explorer 0 Win Type - Total 1 Types 1/0/0/0/0/0/0/0/0/0 Lore% 32 Gallery% 45 Achievement% 37 Wizard Run 0 Options --------- Layout 1 ASCII 0 Keyboard 0 Movement Mouse Keybinds 0 Fullscreen 1 Font 32/SmallcapsGlow Map View 77x35 Zoom Use 0% Tactical HUD 1 Map Filters NONE Filters NONE Steam 1 RUN: 2d7c2fd7-3e12-49a7-bdd7-0162cbefd5d7